[Event "57th Biel Festival MTO 2024"]
[White "Rappazzo,Johannes"]
[Black "Boldoo,Erdenepurev"]
[Site "Biel"]
[Round "5.27"]
[Annotator "TA"]
[Result "1-0"]
[Date "2024.07.19"]
[WhiteElo "2169"]
[BlackElo "2385"]
[PlyCount "113"]
[TimeControl "60"]

{[%evp 25,113,-31,0,0,0,0,0,0,338,348,352,361,383,398,401,399,379,391,394,394,396,277,280,266,283,277,266,265,265,266,258,261,242,214,231,230,228,225,232,226,268,275,285,280,435,289,269,253,314,353,384,382,369,369,346,344,506,501,497,451,510,43,43,43,43,59,100,100,276,276,5104,5104,5097,5074,5073,1276,957,659,29981,29982,29982,29983,29983,29984,29984,29985,29985,29986,29985,29980]} 1. e4 {[%emt 0:0:11]} c5 {[%emt 0:0:33]} 2. Nf3 {[%emt 0:0:10]} Nc6 {[%emt 0:0:6]} 3. d4 {[%emt 0:0:0]} cxd4 {[%emt 0:0:6]} 4. Nxd4 {[%emt 0:0:0]} g6 {[%emt 0:1:11]} 5. Nc3 {[%emt 0:0:44]} Bg7 {[%emt 0:0:7]} 6. Be3 {[%emt 0:0:21]} Nf6 {[%emt 0:0:34]} 7. Nxc6 {[%emt 0:0:49]} bxc6 {[%emt 0:0:5]} 8. e5 {[%emt 0:0:19]} Ng8 {[%emt 0:0:45]} 9. f4 {[%emt 0:0:4]} Nh6 {[%emt 0:1:41]} 10. Qf3 {[%emt 0:1:15] B34: Sicilian: Accelerated Dragon with 5 Nc3: sidelines.} d5 {[%emt 0:0:0]} 11. h3 {[%emt 0:2:8]} Rb8 {[%emt 0:3:2]} 12. O-O-O {[%emt 0:1:7]} Qa5 {[%emt 0:9:43]} 13. Rd4 Qc7 $146 {[%emt 0:23:10]} (13... Nf5 $2 14. Ra4 Qc7 15. Rxa7 $18 )({Predecessor:} 13... Rb4 14. Rxb4 Qxb4 15. Bxa7 O-O 16. Qf2 f6 17. Bc5 Qb7 18. exf6 Bxf6 19. Bd4 e5 20. Bc5 Rf7 21. fxe5 Bg5+ {0-1 Berdalina,S-Zakarlyuk,R Pavlodar op 2008 (6)} )14. Ra4 {[%emt 0:16:24]} a5 $1 {[%emt 0:12:5]} 15. g4 {[%emt 0:1:57]} O-O {[%emt 0:8:59]} 16. Bd3 {[%emt 0:7:34]} c5 $2 {[%emt 0:14:7][%mdl 8192]} (16... f6 $11 {and Black has nothing to worry.} 17. exf6 Bxf6 )17. Nxd5 $18 {[%emt 0:25:52]} (17. Qxd5 Bb7 18. Qxc5 Qxc5 19. Bxc5 Bxh1 $17 )Qb7 {[%emt 0:13:22]} 18. b3 {[%emt 0:13:56]} (18. Bxc5 Kh8 $18 )(18. Rxa5 Qxb2+ 19. Kd2 Rd8 20. Bxc5 (20. Nxe7+ Kh8 $15 )Rxd5 21. Qxd5 Bb7 $11 )e6 {[%emt 0:0:0]} 19. Nf6+ {[%emt 0:0:13]} Bxf6 {[%emt 0:0:0]} 20. Be4 $1 {[%emt 0:1:24]} Qe7 {[%emt 0:2:54]} 21. exf6 {[%emt 0:1:23]} Qxf6 {[%emt 0:3:47]} 22. Kb1 {[%emt 0:0:20]} (22. Rxa5 Qc3 $18 )Qc3 {[%emt 0:6:34]} 23. Bc1 {[%emt 0:0:54]} Qxf3 {[%emt 0:0:0]} 24. Bxf3 {[%emt 0:9:7]} f5 {[%emt 0:2:17]} 25. Rxa5 {[%emt 0:2:12]} c4 {[%emt 0:4:3]} 26. Ra7 {[%emt 0:3:57]} Rf7 {[%emt 0:0:0]} 27. Rxf7 {[%emt 0:3:35]} (27. Ra5 Rc7 28. Re1 fxg4 )Nxf7 {[%emt 0:0:0]} 28. gxf5 {[%emt 0:0:43]} exf5 {[%emt 0:0:0]} 29. Bb2 {[%emt 0:1:5]} cxb3 {[%emt 0:0:0]} 30. cxb3 {[%emt 0:0:16]} Bb7 {[%emt 0:0:0]} 31. Bxb7 {[%emt 0:1:32]} Rxb7 {[%emt 0:0:0]} 32. Rd1 {[%emt 0:0:33]} h6 {[%emt 0:0:0]} 33. h4 {[%emt 0:2:18]} Kh7 {[%emt 0:0:22]} 34. Rd5 {[%emt 0:2:30]} Rb4 {[%emt 0:2:3]} (34... g5 $142 35. fxg5 (35. Rxf5 gxh4 36. Rh5 Kg6 $18 )hxg5 36. Rxf5 g4 37. Rh5+ Kg8 )35. Rd4 {[%emt 0:1:32]} (35. Rd7 Kg8 36. a4 Rxb3 $18 )Rb7 {[%emt 0:0:0]} 36. Bc1 {[%emt 0:2:20]} g5 {[%emt 0:4:22]} 37. fxg5 {[%emt 0:3:59]} hxg5 {[%emt 0:0:0]} 38. hxg5 {[%emt 0:1:11]} (38. Bxg5 Nxg5 39. hxg5 Kg6 $11 )Kg6 {[%emt 0:1:22]} 39. Rd3 {[%emt 0:1:14]} Rb4 {[%emt 0:0:0]} 40. a4 {[%emt 0:1:20]} f4 {[%emt 0:11:5]} (40... Nxg5 {might work better.} 41. a5 Rb5 )41. a5 $18 {[%emt 0:0:47]} Rb5 {[%emt 0:4:0]} 42. Bd2 {[%emt 0:14:40]} (42. Bxf4 Rxa5 43. b4 Rb5 $18 )Ne5 {[%emt 0:2:20] [#]} 43. a6 $2 {[%emt 0:1:58]} ({Only move:} 43. Rd6+ $1 $18 Kxg5 (43... Kf5 44. Rf6+ )44. Ka2 )Nxd3 $14 44. a7 $1 {[%emt 0:0:37]} Rxb3+ 45. Ka2 {[%emt 0:0:43]} Rb2+ {[%emt 0:0:0]} 46. Ka3 Rb1 $2 {[%emt 0:9:5]} (46... Rxd2 $16 47. a8=Q Kxg5 )47. Bc3 $18 {[%emt 0:4:43]} f3 $2 (47... Kxg5 48. a8=Q (48. a8=R f3 $17 )Nc1 49. Qg8+ Kh6 50. Qg7+ Kh5 51. Qh7+ Kg4 52. Qg6+ (52. Qxb1 Ne2 53. Be1 Ng3 54. Qd1+ Kg5 55. Qf3 Nf5 56. Bd2 Ng7 57. Qxf4+ Kg6 )Kf3 53. Qxb1 )(47... Rc1 48. a8=Q Rxc3+ 49. Ka2 Kxg5 )48. a8=Q $18 {[%emt 0:1:45]} (48. a8=R $2 {is the wrong capture.} f2 (48... Kxg5 $2 49. Rg8+ Kf4 50. Bd4 $17 )49. Rf8 f1=Q $19 (49... f1=N 50. Rg8+ Kf7 51. Rg7+ Ke6 52. g6 $15 ))f2 {[%emt 0:0:0]} 49. Qg8+ {[%emt 0:5:6]} Kh5 {[%emt 0:0:0]} 50. Qf7+ {[%emt 0:1:22]} Kg4 {[%emt 0:0:0]} 51. g6 {[%emt 0:1:41]} Nf4 {[%emt 0:0:0]} 52. g7 {[%emt 0:2:43]} Rb8 {[%emt 0:0:50]} 53. g8=Q+ {[%emt 0:2:12]} (53. g8=B $2 {perishes.} f1=Q 54. Qd7+ Kg3 $19 )Rxg8 {[%emt 0:0:0]} 54. Qxg8+ {[%emt 0:0:3]} Kh3 {[%emt 0:0:0]} 55. Qc4 {[%emt 0:0:46]} Kg2 {[%emt 0:0:0]} 56. Qe4+ {[%emt 0:0:13]} Kg3 {[%emt 0:0:14]} 57. Be1 {[%emt 0:0:19]} 1-0

[Event "57th Biel Festival MTO 2024"]
[White "Padmini,Rout"]
[Black "Frayna,Janelle Mae"]
[Site "Biel"]
[Round "5.28"]
[Annotator "RC"]
[Result "1/2-1/2"]
[Date "2024.07.19"]
[WhiteElo "2348"]
[BlackElo "2164"]
[PlyCount "46"]
[TimeControl "60"]

1. c4 {[%emt 0:0:5]} e6 {[%emt 0:0:43]} 2. g3 {[%emt 0:0:42]} d5 {[%emt 0:0:5]} 3. Bg2 {[%emt 0:0:11]} Nf6 {[%emt 0:0:9]} 4. Nf3 {[%emt 0:0:30]} Be7 {[%emt 0:0:23]} 5. O-O {[%emt 0:1:6]} O-O {[%emt 0:0:49]} 6. d4 {[%emt 0:1:57]} c6 {[%emt 0:2:22]} 7. Nc3 {[%emt 0:2:20]} b6 {[%emt 0:2:26]} 8. Ne5 {[%emt 0:11:32]} Ba6 {[%emt 0:2:27]} 9. b3 {[%emt 0:10:31]} b5 {[%emt 0:10:31]} 10. cxb5 {[%emt 0:9:48]} cxb5 {[%emt 0:0:8]} 11. a3 {[%emt 0:0:22]} Qb6 {[%emt 0:3:49]} 12. b4 {[%emt 0:10:43]} Nc6 {[%emt 0:5:50]} 13. Nxc6 {[%emt 0:1:9]} Qxc6 {[%emt 0:0:3]} 14. Bb2 {[%emt 0:0:42]} Bb7 {[%emt 0:3:37]} 15. Qd3 {[%emt 0:5:16]} a6 {[%emt 0:6:42]} 16. Rfc1 {[%emt 0:5:58]} Qb6 {[%emt 0:0:48]} 17. Nb1 {[%emt 0:0:58]} Ne4 {[%emt 0:2:12]} 18. Nd2 {[%emt 0:0:49]} Nxd2 {[%emt 0:0:39]} 19. Qxd2 {[%emt 0:0:4]} Rfc8 {[%emt 0:0:7]} 20. Rxc8+ {[%emt 0:0:40]} Rxc8 {[%emt 0:0:1]} 21. Rc1 {[%emt 0:0:8]} Rxc1+ {[%emt 0:0:24]} 22. Qxc1 {[%emt 0:0:6]} Qc6 {[%emt 0:0:3]} 23. Qxc6 {[%emt 0:0:16]} Bxc6 {[%emt 0:0:3]} 1/2-1/2

[Event "57th Biel Festival MTO 2024"]
[White "Sukandar,Irine Kharisma"]
[Black "Vincenti,Leonardo"]
[Site "Biel"]
[Round "5.29"]
[Annotator "RC"]
[Result "1-0"]
[Date "2024.07.19"]
[WhiteElo "2338"]
[BlackElo "2166"]
[PlyCount "105"]
[TimeControl "60"]

1. e4 {[%emt 0:0:44]} e6 {[%emt 0:0:1]} 2. d4 {[%emt 0:0:44]} d5 {[%emt 0:0:3]} 3. Nc3 {[%emt 0:0:14]} dxe4 {[%emt 0:0:25]} 4. Nxe4 {[%emt 0:0:6]} Nd7 {[%emt 0:0:5]} 5. Nf3 {[%emt 0:0:18]} Ngf6 {[%emt 0:0:1]} 6. Bg5 {[%emt 0:0:30]} h6 {[%emt 0:0:5]} 7. Nxf6+ {[%emt 0:0:16]} Nxf6 {[%emt 0:0:4]} 8. Be3 {[%emt 0:0:9]} Bd6 {[%emt 0:0:9]} 9. Bd3 {[%emt 0:0:32]} O-O {[%emt 0:0:9]} 10. Qe2 {[%emt 0:0:23]} b6 {[%emt 0:0:8]} 11. O-O-O {[%emt 0:0:31]} Bb7 {[%emt 0:0:17]} 12. Ne5 {[%emt 0:0:25]} c5 {[%emt 0:1:0]} 13. Nc4 {[%emt 0:9:35]} Nd5 {[%emt 0:11:22]} 14. dxc5 {[%emt 0:12:17]} Bxc5 {[%emt 0:18:44]} 15. Bxc5 {[%emt 0:0:32]} bxc5 {[%emt 0:0:3]} 16. Qe4 {[%emt 0:0:46]} g6 {[%emt 0:5:23]} 17. Qe5 {[%emt 0:5:55]} Qb8 {[%emt 0:18:53]} 18. Rhe1 {[%emt 0:15:34]} Nb4 {[%emt 0:12:43]} 19. Qf6 {[%emt 0:3:24]} Qd8 {[%emt 0:22:28]} 20. Rxe6 {[%emt 0:5:13]} Qxf6 {[%emt 0:1:49]} 21. Rxf6 {[%emt 0:0:3]} Kg7 {[%emt 0:1:11]} 22. Rd6 {[%emt 0:0:55]} Bxg2 {[%emt 0:0:23]} 23. Ne5 {[%emt 0:2:19]} Rfe8 {[%emt 0:10:22]} 24. f4 {[%emt 0:0:37]} Nxd3+ {[%emt 0:0:50]} 25. R1xd3 {[%emt 0:0:29]} Re7 {[%emt 0:3:16]} 26. Rc3 {[%emt 0:2:46]} g5 {[%emt 0:0:46]} 27. Rg3 {[%emt 0:4:42]} Be4 {[%emt 0:1:16]} 28. h4 {[%emt 0:1:44]} f6 {[%emt 0:0:45]} 29. Nc4 {[%emt 0:1:55]} Rh8 {[%emt 0:1:29]} 30. Ne3 {[%emt 0:1:0]} Kf7 {[%emt 0:0:38]} 31. fxg5 {[%emt 0:5:30]} hxg5 {[%emt 0:0:1]} 32. hxg5 {[%emt 0:0:9]} Rh1+ {[%emt 0:0:7]} 33. Kd2 {[%emt 0:0:31]} Rh2+ {[%emt 0:0:7]} 34. Kc3 {[%emt 0:0:18]} fxg5 {[%emt 0:0:59]} 35. Kc4 {[%emt 0:6:2]} Bxc2 {[%emt 0:0:29]} 36. Nd5 {[%emt 0:0:45]} Re5 {[%emt 0:0:59]} 37. Ra3 {[%emt 0:5:52]} Rh4+ {[%emt 0:0:40]} 38. Kxc5 {[%emt 0:0:7]} Ra4 {[%emt 0:0:4]} 39. Rxa4 {[%emt 0:5:23]} Bxa4 {[%emt 0:0:1]} 40. Ra6 {[%emt 0:0:12]} Bd7 {[%emt 0:1:30]} 41. Kd4 {[%emt 0:51:12]} Re2 {[%emt 0:4:13]} 42. Rxa7 {[%emt 0:0:0]} Rxb2 {[%emt 0:3:33]} 43. Rxd7+ {[%emt 0:0:0]} Ke6 {[%emt 0:0:6]} 44. Re7+ {[%emt 0:0:0]} Kd6 {[%emt 0:0:12]} 45. Ra7 {[%emt 0:0:0]} Rd2+ {[%emt 0:2:57]} 46. Ke4 {[%emt 0:0:0]} Kc5 {[%emt 0:2:45]} 47. Ra5+ {[%emt 0:0:0]} Kc4 {[%emt 0:1:13]} 48. Ra4+ {[%emt 0:0:0]} Kc5 {[%emt 0:0:30]} 49. Nc3 {[%emt 0:0:0]} Rg2 {[%emt 0:1:33]} 50. Kd3 {[%emt 0:0:0]} g4 {[%emt 0:0:56]} 51. Ra5+ {[%emt 0:0:0]} Kb6 {[%emt 0:0:29]} 52. Rg5 {[%emt 0:0:0]} g3 {[%emt 0:0:8]} 53. Ne2 {[%emt 0:0:0]} 1-0

[Event "57th Biel Festival MTO 2024"]
[White "Schnell,Simon"]
[Black "Ritviz,Parab"]
[Site "Biel"]
[Round "5.30"]
[Annotator "RC"]
[Result "0-1"]
[Date "2024.07.19"]
[WhiteElo "2139"]
[BlackElo "2334"]
[PlyCount "144"]
[TimeControl "60"]

1. d4 {[%emt 0:0:2]} Nf6 {[%emt 0:0:24]} 2. c4 {[%emt 0:0:4]} e6 {[%emt 0:0:6]} 3. Nc3 {[%emt 0:0:5]} Bb4 {[%emt 0:0:10]} 4. e3 {[%emt 0:0:6]} b6 {[%emt 0:0:19]} 5. Nge2 {[%emt 0:0:19]} c5 {[%emt 0:0:23]} 6. a3 {[%emt 0:0:13]} Ba5 {[%emt 0:0:8]} 7. Rb1 {[%emt 0:0:8]} Na6 {[%emt 0:0:17]} 8. g3 {[%emt 0:0:22]} Bb7 {[%emt 0:27:58]} 9. d5 {[%emt 0:0:16]} b5 {[%emt 0:0:39]} 10. b3 {[%emt 0:1:54]} b4 {[%emt 0:28:58]} 11. axb4 {[%emt 0:1:39]} Nxb4 {[%emt 0:0:44]} 12. Bg2 {[%emt 0:2:58]} exd5 {[%emt 0:0:12]} 13. O-O {[%emt 0:1:13]} O-O {[%emt 0:10:24]} 14. Nxd5 {[%emt 0:6:49]} Nfxd5 {[%emt 0:2:9]} 15. cxd5 {[%emt 0:0:13]} Ba6 {[%emt 0:3:27]} 16. Bb2 {[%emt 0:13:17]} Nd3 {[%emt 0:4:36]} 17. Ba1 {[%emt 0:4:38]} Re8 {[%emt 0:0:59]} 18. Qc2 {[%emt 0:10:34]} d6 {[%emt 0:9:17]} 19. Rfd1 {[%emt 0:3:53]} Ne5 {[%emt 0:0:39]} 20. Qb2 {[%emt 0:7:16]} Qf6 {[%emt 0:4:54]} 21. Nf4 {[%emt 0:8:53]} Bb4 {[%emt 0:2:36]} 22. Qa2 {[%emt 0:8:14]} Bb5 {[%emt 0:0:17]} 23. Nd3 {[%emt 0:3:20]} Bxd3 {[%emt 0:2:0]} 24. Rxd3 {[%emt 0:0:51]} Nf3+ {[%emt 0:2:46]} 25. Kh1 {[%emt 0:1:6]} Qg6 {[%emt 0:0:40]} 26. Rdd1 {[%emt 0:2:55]} Qh5 {[%emt 0:0:52]} 27. h3 {[%emt 0:2:3]} Ng5 {[%emt 0:0:4]} 28. Kh2 {[%emt 0:1:59]} Nf3+ {[%emt 0:0:5]} 29. Kh1 {[%emt 0:0:8]} Ng5 {[%emt 0:0:4]} 30. Kh2 {[%emt 0:6:19]} Ne4 {[%emt 0:0:10]} 31. Rbc1 {[%emt 0:1:49]} Re7 {[%emt 0:1:12]} 32. Bxe4 {[%emt 0:6:24]} Rxe4 {[%emt 0:0:5]} 33. Qa6 {[%emt 0:2:1]} Qg6 {[%emt 0:2:15]} 34. Qb7 {[%emt 0:2:36]} Rae8 {[%emt 0:0:12]} 35. Qxa7 {[%emt 0:1:55]} Qf5 {[%emt 0:1:56]} 36. Kg2 {[%emt 0:3:25]} h5 {[%emt 0:0:7]} 37. Qa2 {[%emt 0:4:51]} h4 {[%emt 0:4:0]} 38. g4 {[%emt 0:1:58]} Qg5 {[%emt 0:2:7]} 39. Rc4 {[%emt 0:1:44]} f5 {[%emt 0:0:0]} 40. Rxe4 {[%emt 0:0:52]} Rxe4 {[%emt 0:0:29]} 41. Qc2 {[%emt 0:15:23]} Qg6 {[%emt 0:13:17]} 42. f3 {[%emt 0:1:49]} Rxe3 {[%emt 0:0:44]} 43. Qf2 {[%emt 0:19:51]} f4 {[%emt 0:12:25]} 44. Rf1 {[%emt 0:5:11]} Qg5 {[%emt 0:2:43]} 45. Qc2 {[%emt 0:2:50]} Qxd5 {[%emt 0:11:35]} 46. Qg6 {[%emt 0:1:9]} Re2+ {[%emt 0:4:22]} 47. Kg1 {[%emt 0:2:40]} Re7 {[%emt 0:0:7]} 48. Bf6 {[%emt 0:2:55]} Qf7 {[%emt 0:6:50]} 49. Qxf7+ {[%emt 0:0:21]} Rxf7 {[%emt 0:0:4]} 50. Bxh4 {[%emt 0:0:15]} Bc3 {[%emt 0:0:7]} 51. Rd1 {[%emt 0:1:33]} Be5 {[%emt 0:0:13]} 52. Bf2 {[%emt 0:2:29]} Rb7 {[%emt 0:1:51]} 53. Rd3 {[%emt 0:0:10]} Ra7 {[%emt 0:0:44]} 54. Kf1 {[%emt 0:0:40]} Ra2 {[%emt 0:0:50]} 55. Be1 {[%emt 0:0:31]} Rb2 {[%emt 0:0:40]} 56. Bd2 {[%emt 0:0:28]} Kf7 {[%emt 0:0:51]} 57. h4 {[%emt 0:0:37]} Ke6 {[%emt 0:0:32]} 58. h5 {[%emt 0:0:21]} d5 {[%emt 0:0:44]} 59. Ke1 {[%emt 0:0:30]} Rb1+ {[%emt 0:0:48]} 60. Ke2 {[%emt 0:0:35]} Rh1 {[%emt 0:1:19]} 61. Be1 {[%emt 0:5:14]} Rh2+ {[%emt 0:0:5]} 62. Kd1 {[%emt 0:0:14]} Ra2 {[%emt 0:1:57]} 63. Rd2 {[%emt 0:8:24]} Ra3 {[%emt 0:1:58]} 64. Bf2 {[%emt 0:1:56]} Rxb3 {[%emt 0:1:22]} 65. Bxc5 {[%emt 0:0:5]} Rxf3 {[%emt 0:0:3]} 66. Bf2 {[%emt 0:0:21]} Ra3 {[%emt 0:1:6]} 67. Ke2 {[%emt 0:0:28]} f3+ {[%emt 0:1:4]} 68. Kd1 {[%emt 0:0:15]} d4 {[%emt 0:0:50]} 69. Bxd4 {[%emt 0:1:20]} Bxd4 {[%emt 0:0:17]} 70. Rxd4 {[%emt 0:0:2]} Ra1+ {[%emt 0:0:7]} 71. Kd2 {[%emt 0:0:21]} f2 {[%emt 0:0:12]} 72. Re4+ {[%emt 0:0:1]} Kd5 {[%emt 0:0:9]} 0-1

[Event "57th Biel Festival MTO 2024"]
[White "Smeets,Kobe"]
[Black "Woong,Zhi Wei William"]
[Site "Biel"]
[Round "5.31"]
[Annotator "RC"]
[Result "1-0"]
[Date "2024.07.19"]
[WhiteElo "2324"]
[BlackElo "2139"]
[PlyCount "103"]
[TimeControl "60"]

1. e4 {[%emt 0:0:2]} c5 {[%emt 0:0:58]} 2. Nf3 {[%emt 0:0:8]} Nc6 {[%emt 0:0:29]} 3. Bb5 {[%emt 0:0:12]} Nf6 {[%emt 0:0:20]} 4. Bxc6 {[%emt 0:0:11]} dxc6 {[%emt 0:0:4]} 5. d3 {[%emt 0:0:8]} Bg4 {[%emt 0:2:37]} 6. h3 {[%emt 0:0:7]} Bh5 {[%emt 0:0:3]} 7. Nbd2 {[%emt 0:0:7]} Nd7 {[%emt 0:0:20]} 8. g4 {[%emt 0:0:15]} Bg6 {[%emt 0:0:6]} 9. a4 {[%emt 0:0:4]} a5 {[%emt 0:1:27]} 10. Nc4 {[%emt 0:0:50]} Qc7 {[%emt 0:0:45]} 11. Qe2 {[%emt 0:2:27]} e5 {[%emt 0:1:16]} 12. h4 {[%emt 0:3:38]} f6 {[%emt 0:15:4]} 13. h5 {[%emt 0:7:20]} Bf7 {[%emt 0:0:6]} 14. Ne3 {[%emt 0:0:41]} O-O-O {[%emt 0:14:41]} 15. Bd2 {[%emt 0:13:42]} b6 {[%emt 0:4:7]} 16. b3 {[%emt 0:6:53]} Bd6 {[%emt 0:3:29]} 17. O-O-O {[%emt 0:4:26]} Nf8 {[%emt 0:8:49]} 18. g5 {[%emt 0:4:40]} Ne6 {[%emt 0:2:15]} 19. Nf5 {[%emt 0:6:12]} fxg5 {[%emt 0:14:2]} 20. Nxg5 {[%emt 0:1:7]} Nxg5 {[%emt 0:11:31]} 21. Bxg5 {[%emt 0:0:8]} Rdf8 {[%emt 0:1:19]} 22. h6 {[%emt 0:34:12]} g6 {[%emt 0:5:0]} 23. Nxd6+ {[%emt 0:0:46]} Qxd6 {[%emt 0:0:5]} 24. d4 {[%emt 0:3:18]} cxd4 {[%emt 0:5:16]} 25. Qa6+ {[%emt 0:0:11]} Kd7 {[%emt 0:0:47]} 26. Qxb6 {[%emt 0:1:47]} Rb8 {[%emt 0:6:18]} 27. Qa7+ {[%emt 0:1:19]} Ke6 {[%emt 0:1:25]} 28. f4 {[%emt 0:2:25]} Qa3+ {[%emt 0:2:59]} 29. Kd2 {[%emt 0:0:4]} exf4 {[%emt 0:4:7]} 30. Ke2 {[%emt 0:0:20]} Qb4 {[%emt 0:3:9]} 31. Rxd4 {[%emt 0:3:50]} Rb7 {[%emt 0:0:43]} 32. Qa6 {[%emt 0:5:20]} Qxd4 {[%emt 0:1:55]} 33. Qxc6+ {[%emt 0:0:5]} Qd6 {[%emt 0:0:5]} 34. Qxb7 {[%emt 0:0:4]} Rb8 {[%emt 0:0:48]} 35. Qd5+ {[%emt 0:9:57]} Qxd5 {[%emt 0:0:7]} 36. exd5+ {[%emt 0:0:1]} Kxd5 {[%emt 0:0:32]} 37. Bxf4 {[%emt 0:0:28]} Rc8 {[%emt 0:1:1]} 38. Kd3 {[%emt 0:0:29]} Be6 {[%emt 0:0:45]} 39. c4+ {[%emt 0:0:49]} Kc6 {[%emt 0:0:17]} 40. Bg5 {[%emt 0:1:10]} Rf8 {[%emt 0:0:44]} 41. Re1 {[%emt 0:16:20]} Kd6 {[%emt 0:11:47]} 42. Kd4 {[%emt 0:9:10]} Rf5 {[%emt 0:5:42]} 43. Bd2 {[%emt 0:1:13]} Rh5 {[%emt 0:16:51]} 44. c5+ {[%emt 0:3:18]} Ke7 {[%emt 0:0:32]} 45. Bxa5 {[%emt 0:3:49]} Kf6 {[%emt 0:11:37]} 46. b4 {[%emt 0:4:5]} Rh4+ {[%emt 0:2:3]} 47. Re4 {[%emt 0:0:23]} Rxh6 {[%emt 0:2:27]} 48. c6 {[%emt 0:2:12]} Rh1 {[%emt 0:0:54]} 49. b5 {[%emt 0:2:20]} Bf5 {[%emt 0:1:36]} 50. c7 {[%emt 0:0:58]} Rd1+ {[%emt 0:1:34]} 51. Ke3 {[%emt 0:0:10]} Rc1 {[%emt 0:0:24]} 52. b6 {[%emt 0:0:23]} 1-0

[Event "57th Biel Festival MTO 2024"]
[White "Emmenecker,Pierre-Antoine"]
[Black "Nurgaliyeva,Zarina"]
[Site "Biel"]
[Round "5.32"]
[Annotator "RC"]
[Result "1-0"]
[Date "2024.07.19"]
[WhiteElo "2306"]
[BlackElo "2145"]
[PlyCount "137"]
[TimeControl "60"]

1. e4 {[%emt 0:0:1]} e5 {[%emt 0:6:45]} 2. Nf3 {[%emt 0:0:6]} Nc6 {[%emt 0:0:5]} 3. d4 {[%emt 0:0:8]} exd4 {[%emt 0:0:6]} 4. Nxd4 {[%emt 0:0:6]} Qf6 {[%emt 0:0:5]} 5. Nb5 {[%emt 0:0:10]} Bc5 {[%emt 0:0:50]} 6. Qe2 {[%emt 0:0:21]} Bb6 {[%emt 0:1:25]} 7. N1c3 {[%emt 0:0:38]} Nge7 {[%emt 0:0:45]} 8. Be3 {[%emt 0:0:24]} Ba5 {[%emt 0:2:4]} 9. O-O-O {[%emt 0:0:37]} a6 {[%emt 0:11:39]} 10. Nd5 {[%emt 0:0:29]} Nxd5 {[%emt 0:1:43]} 11. exd5 {[%emt 0:0:11]} Ne7 {[%emt 0:1:41]} 12. Na3 {[%emt 0:6:8]} b5 {[%emt 0:12:42]} 13. h4 {[%emt 0:32:21]} Bb4 {[%emt 0:13:57]} 14. Nb1 {[%emt 0:7:54]} h6 {[%emt 0:14:59]} 15. Rd4 {[%emt 0:27:23]} Bd6 {[%emt 0:24:5]} 16. Nc3 {[%emt 0:2:32]} Be5 {[%emt 0:2:41]} 17. Re4 {[%emt 0:7:18]} Bb7 {[%emt 0:6:28]} 18. Bg5 {[%emt 0:3:12]} hxg5 {[%emt 0:0:1]} 19. Rxe5 {[%emt 0:0:18]} Rxh4 {[%emt 0:1:5]} 20. Rxh4 {[%emt 0:5:46]} gxh4 {[%emt 0:0:2]} 21. Re4 {[%emt 0:3:1]} c6 {[%emt 0:3:34]} 22. Qd2 {[%emt 0:8:15]} Kf8 {[%emt 0:3:21]} 23. d6 {[%emt 0:3:55]} Nc8 {[%emt 0:0:40]} 24. Rf4 {[%emt 0:0:37]} Qxd6 {[%emt 0:1:13]} 25. Rd4 {[%emt 0:0:7]} Qh6 {[%emt 0:0:30]} 26. Rxd7 {[%emt 0:0:10]} Qxd2+ {[%emt 0:0:20]} 27. Kxd2 {[%emt 0:0:21]} Rb8 {[%emt 0:0:33]} 28. Ne4 {[%emt 0:0:33]} Nb6 {[%emt 0:0:34]} 29. Nc5 {[%emt 0:0:45]} Nxd7 {[%emt 0:0:33]} 30. Nxd7+ {[%emt 0:0:1]} Ke7 {[%emt 0:0:24]} 31. Nxb8 {[%emt 0:0:2]} Kd6 {[%emt 0:0:24]} 32. Ke3 {[%emt 0:0:17]} Kc7 {[%emt 0:0:27]} 33. Nxa6+ {[%emt 0:0:13]} Bxa6 {[%emt 0:0:2]} 34. Kf4 {[%emt 0:0:35]} Bc8 {[%emt 0:0:57]} 35. Kg5 {[%emt 0:0:14]} Be6 {[%emt 0:0:19]} 36. a3 {[%emt 0:0:17]} Kd6 {[%emt 0:0:25]} 37. Kxh4 {[%emt 0:0:18]} Ke5 {[%emt 0:0:46]} 38. Kg3 {[%emt 0:1:0]} g5 {[%emt 0:0:44]} 39. Kf3 {[%emt 0:1:3]} f5 {[%emt 0:0:28]} 40. Ke3 {[%emt 0:1:33]} Bd5 {[%emt 0:0:21]} 41. g3 {[%emt 0:14:0]} f4+ {[%emt 0:8:16]} 42. gxf4+ {[%emt 0:6:51]} gxf4+ {[%emt 0:0:2]} 43. Kd2 {[%emt 0:0:15]} Kd4 {[%emt 0:3:4]} 44. b4 {[%emt 0:27:37]} Bf3 {[%emt 0:22:9]} 45. c3+ {[%emt 0:1:36]} Kd5 {[%emt 0:0:47]} 46. c4+ {[%emt 0:0:39]} bxc4 {[%emt 0:0:40]} 47. Kc3 {[%emt 0:0:8]} Bd1 {[%emt 0:1:22]} 48. Bg2+ {[%emt 0:2:32]} f3 {[%emt 0:0:15]} 49. Bf1 {[%emt 0:0:23]} Bb3 {[%emt 0:10:19]} 50. Bh3 {[%emt 0:0:45]} Bd1 {[%emt 0:2:11]} 51. Bf1 {[%emt 0:0:52]} Bb3 {[%emt 0:0:27]} 52. Bh3 {[%emt 0:0:1]} Bd1 {[%emt 0:0:1]} 53. Bf5 {[%emt 0:0:51]} Ke5 {[%emt 0:3:3]} 54. Bc2 {[%emt 0:0:32]} Be2 {[%emt 0:0:7]} 55. a4 {[%emt 0:0:25]} Kd6 {[%emt 0:0:34]} 56. Kd4 {[%emt 0:1:4]} Kc7 {[%emt 0:0:19]} 57. a5 {[%emt 0:0:32]} Kb7 {[%emt 0:1:19]} 58. Be4 {[%emt 0:0:12]} Kc7 {[%emt 0:0:53]} 59. Ke3 {[%emt 0:0:22]} Kb7 {[%emt 0:1:28]} 60. Bxf3 {[%emt 0:0:36]} Bxf3 {[%emt 0:0:41]} 61. Kxf3 {[%emt 0:15:8]} Ka6 {[%emt 0:15:2]} 62. Ke2 {[%emt 0:0:0]} c5 {[%emt 0:0:0]} 63. f4 {[%emt 0:0:4]} cxb4 {[%emt 0:0:0]} 64. f5 {[%emt 0:0:26]} b3 {[%emt 0:0:0]} 65. Kd2 {[%emt 0:0:53]} Kxa5 {[%emt 0:0:0]} 66. f6 {[%emt 0:0:59]} Kb4 {[%emt 0:0:0]} 67. f7 {[%emt 0:0:9]} c3+ {[%emt 0:0:0]} 68. Kc1 {[%emt 0:0:25]} b2+ {[%emt 0:0:0]} 69. Kc2 {[%emt 0:0:16]} 1-0

[Event "57th Biel Festival MTO 2024"]
[White "Shoshin,Kirill"]
[Black "Gemelli,Romain"]
[Site "Biel"]
[Round "5.33"]
[Annotator "RC"]
[Result "0-1"]
[Date "2024.07.19"]
[WhiteElo "2277"]
[BlackElo "2101"]
[PlyCount "48"]
[TimeControl "60"]

1. d4 {[%emt 0:0:53]} Nf6 {[%emt 0:0:16]} 2. c4 {[%emt 0:0:17]} e6 {[%emt 0:0:6]} 3. Nc3 {[%emt 0:0:6]} Bb4 {[%emt 0:0:5]} 4. e3 {[%emt 0:0:5]} O-O {[%emt 0:0:7]} 5. Bd3 {[%emt 0:0:2]} d5 {[%emt 0:0:9]} 6. a3 {[%emt 0:0:4]} Bxc3+ {[%emt 0:0:5]} 7. bxc3 {[%emt 0:0:4]} dxc4 {[%emt 0:0:8]} 8. Bxc4 {[%emt 0:0:4]} c5 {[%emt 0:0:7]} 9. Ne2 {[%emt 0:0:3]} Qc7 {[%emt 0:0:28]} 10. Ba2 {[%emt 0:0:58]} b6 {[%emt 0:0:47]} 11. O-O {[%emt 0:0:8]} Ba6 {[%emt 0:0:32]} 12. Bb2 {[%emt 0:1:34]} Nc6 {[%emt 0:1:7]} 13. Rc1 {[%emt 0:0:10]} Rfd8 {[%emt 0:1:29]} 14. c4 {[%emt 0:4:37]} cxd4 {[%emt 0:23:16]} 15. Nxd4 {[%emt 0:1:4]} e5 {[%emt 0:10:3]} 16. Nb5 {[%emt 0:0:2]} Bxb5 {[%emt 0:0:48]} 17. cxb5 {[%emt 0:0:7]} Rxd1 {[%emt 0:0:4]} 18. Rfxd1 {[%emt 0:0:2]} Ne4 {[%emt 0:13:5]} 19. bxc6 {[%emt 0:0:5]} Nc5 {[%emt 0:0:11]} 20. a4 {[%emt 0:0:4]} h6 {[%emt 0:12:28]} 21. Ba3 {[%emt 1:0:39]} Rd8 {[%emt 0:5:13]} 22. Rd5 {[%emt 0:4:3]} Rd6 {[%emt 0:4:26]} 23. Rxe5 {[%emt 0:4:43]} Qxc6 {[%emt 0:4:41]} 24. Re7 {[%emt 0:0:35]} Qxa4 {[%emt 0:4:53]} 0-1